fUST/lending_fUST_20250212
["ID","MTS","AMOUNT","RATE_DAILY","PERIOD"]
[352816649,1739344245986,-501.90547418,0.00013775,2]
[352816651,1739344245999,-500.0,0.00013775,2]
[352816652,1739344246008,-503.88641825,0.00013775,2]
[352816653,1739344246018,-500.0,0.00013775,2]
[352816654,1739344246027,-500.0,0.00013775,2]
[352816656,1739344246037,-502.67727954,0.00013775,2]
[352816658,1739344246047,-500.0,0.00013775,2]
[352816659,1739344246057,-500.0,0.00013775,2]
[352816660,1739344246067,-269.85430873,0.00013776,2]
[352816661,1739344246077,-500.0,0.00013776,2]
[352816662,1739344246086,-500.85551591,0.00013776,2]
[352816663,1739344246096,-500.0,0.00013776,2]
[352816664,1739344246106,-269.89626253,0.00013776,2]
[352816665,1739344246115,-500.0,0.00013776,2]
[352816666,1739344246125,-502.98,0.00013776,2]
[352816667,1739344246134,-592.42039046,0.00013776,2]
[352816668,1739344246144,-500.0,0.00013776,2]
[352816670,1739344246153,-500.0,0.00013776,2]
[352816671,1739344246162,-504.09385091,0.00013776,2]
[352816673,1739344246172,-500.0,0.00013776,2]
[352816675,1739344246182,-500.0,0.00013776,2]
[352816676,1739344246191,-500.0,0.00013776,2]
[352816677,1739344246200,-500.0,0.00013776,2]
[352816678,1739344246209,-3733.21,0.00013776,2]
[352816679,1739344246218,-1029.41,0.00013776,2]
[352816681,1739344246228,-500.0,0.00013776,2]
[352816682,1739344246307,-500.0,0.00013776,2]
[352816683,1739344246316,-501.89961858,0.00013776,2]
[352816684,1739344246325,-500.0,0.00013776,2]
[352816685,1739344246335,-502.17235221,0.00013776,2]
[352816686,1739344246344,-500.0,0.00013776,2]
[352816687,1739344246353,-500.0,0.00013776,2]
[352816688,1739344246362,-500.0,0.00013776,2]
[352816689,1739344246371,-500.0,0.00013776,2]
[352816690,1739344246380,-500.0,0.00013776,2]
[352816691,1739344246389,-151.0,0.00013776,2]
[352816692,1739344246398,-338.4561293,0.00013776,2]
[352816693,1739344246407,-9792.87,0.00013776,2]
[352816694,1739344246416,-151.0,0.00013776,2]
[352816695,1739344246426,-500.0,0.00013776,2]
[352816696,1739344246436,-495.96016509,0.00013776,2]
[352816697,1739344246445,-500.0,0.00013776,2]
[352816698,1739344246454,-500.0,0.00013776,2]
[352816699,1739344246464,-151.0,0.00013776,2]
[352816700,1739344246474,-151.0,0.00013776,2]
[352816701,1739344246483,-500.0,0.00013776,2]
[352816702,1739344246493,-500.0,0.00013776,2]
[352816703,1739344246503,-500.0,0.00013776,2]
[352816704,1739344246515,-151.142476,0.00013776,2]
[352816705,1739344246529,-293.5474661,0.00013776,2]
[352816706,1739344246539,-625.36247002,0.00013776,2]
[352816707,1739344246548,-151.0,0.00013776,2]
[352816708,1739344246558,-151.862795,0.00013776,2]
[352816709,1739344246567,-500.0,0.00013776,2]
[352816710,1739344246577,-4052.13,0.00013776,2]
[352816711,1739344246586,-500.0,0.00013776,2]
[352816712,1739344246596,-500.0,0.00013776,2]
[352816713,1739344246605,-500.0,0.00013776,2]
[352816714,1739344246614,-500.0,0.00013776,2]
[352816715,1739344246624,-500.0,0.00013776,2]
[352816716,1739344246633,-500.0,0.00013776,2]
[352816717,1739344246643,-500.0,0.00013776,2]
[352816718,1739344246652,-500.0,0.00013777,2]
[352816719,1739344246662,-500.0,0.00013777,2]
[352816720,1739344246671,-500.0,0.00013777,2]
[352816721,1739344246680,-500.0,0.00013777,2]
[352816722,1739344246690,-500.0,0.00013778,2]
[352816723,1739344246699,-500.96815387,0.00013778,2]
[352816724,1739344246708,-612.93836501,0.00013778,2]
[352816725,1739344246718,-311.96996259,0.00013778,2]
[352816726,1739344246727,-221.25258393,0.00013778,2]
[352816727,1739344246736,-500.0,0.00013778,2]
[352816728,1739344246746,-500.0,0.00013778,2]
[352816729,1739344246755,-307.37210163,0.00013778,2]
[352816730,1739344246765,-500.0,0.00013778,2]
[352816731,1739344246775,-216.067364,0.00013778,2]
[352816732,1739344246784,-151.0,0.00013778,2]
[352816733,1739344246794,-151.0,0.00013778,2]
[352816734,1739344246804,-541.03290781,0.00013779,2]
[352816735,1739344246813,-500.0,0.00013789,2]
[352816736,1739344246823,-258.38802086,0.00013813,2]
[352816737,1739344246834,-878.96,0.00013815,2]
[352816738,1739344246844,-500.0,0.00013815,2]
[352816739,1739344246855,-500.0,0.00013815,2]
[352816740,1739344246864,-809.78,0.00013815,2]
[352816741,1739344246874,-152.03741708,0.00013855,2]
[352816742,1739344246883,-3244.95,0.00013911,2]
[352816743,1739344246893,-1060.27,0.00013911,2]
[352816744,1739344246903,-500.0,0.00013911,2]
[352816745,1739344246912,-1074.58,0.00013911,2]
[352816746,1739344246922,-500.0,0.00013911,2]
[352816747,1739344246931,-500.0,0.00013911,2]
[352816748,1739344246941,-515.13,0.00013911,2]
[352816749,1739344246951,-500.0,0.00013911,2]
[352816750,1739344246960,-749.62,0.00013911,2]
[352816751,1739344246970,-3025.9,0.00013911,2]
[352816752,1739344246979,-500.0,0.00013911,2]
[352816753,1739344246989,-628.25,0.00013911,2]
[352816754,1739344247001,-500.0,0.00013911,2]
[352816755,1739344247011,-500.0,0.00013911,2]
[352816756,1739344247021,-500.0,0.00013911,2]
[352816757,1739344247030,-500.0,0.00013911,2]
[352816758,1739344247041,-500.0,0.00013912,2]
[352816759,1739344247051,-500.0,0.00013912,2]
[352816760,1739344247062,-500.0,0.00013912,2]
[352816761,1739344247074,-555.84272419,0.00013912,2]
[352816762,1739344247083,-500.0,0.00013912,2]
[352816763,1739344247093,-500.0,0.00013912,2]
[352816764,1739344247102,-500.0,0.00013913,2]
[352816765,1739344247112,-500.0,0.00013913,2]
[352816766,1739344247121,-500.0,0.00013913,2]
[352816767,1739344247131,-500.0,0.00013913,2]
[352816768,1739344247140,-500.0,0.00013913,2]
[352816769,1739344247150,-500.0,0.00013913,2]
[352816770,1739344247160,-500.0,0.00013913,2]
[352816771,1739344247169,-500.0,0.00013913,2]
[352816772,1739344247179,-3733.21,0.00013913,2]
[352816773,1739344247188,-1029.41,0.00013913,2]
[352816774,1739344247198,-500.0,0.00013913,2]
[352816775,1739344247207,-500.0,0.00013913,2]
[352816776,1739344247216,-500.0,0.00013913,2]
[352816777,1739344247225,-398.23614346,0.00013913,2]
[352816778,1739344247235,-500.0,0.00013913,2]
[352816779,1739344247244,-9792.87,0.00013913,2]
[352816780,1739344247253,-500.0,0.00013913,2]
[352816781,1739344247263,-500.0,0.00013913,2]
[352816782,1739344247273,-500.0,0.00013913,2]
[352816783,1739344247282,-607.150844,0.00013913,2]
[352816784,1739344247291,-500.0,0.00013913,2]
[352816785,1739344247301,-4052.13,0.00013913,2]
[352816786,1739344247310,-500.0,0.00013913,2]
[352816787,1739344247320,-502.53382021,0.00013913,2]
[352816788,1739344247330,-500.0,0.00013913,2]
[352816789,1739344247340,-489.66771752,0.00013913,2]
[352816790,1739344247349,-500.0,0.00013913,2]
[352816791,1739344247359,-151.0,0.00013913,2]
[352816792,1739344247368,-500.0,0.00013913,2]
[352816793,1739344247378,-500.0,0.00013913,2]
[352816794,1739344247388,-500.0,0.00013914,2]
[352816795,1739344247398,-500.0,0.00013914,2]
[352816796,1739344247407,-500.0,0.00013914,2]
[352816797,1739344247416,-500.0,0.00013915,2]
[352816798,1739344247426,-358.513,0.0001393,2]
[352816799,1739344247436,-258.38802086,0.0001395,2]
[352816800,1739344247445,-878.96,0.00013952,2]
[352816801,1739344247455,-151.4518169,0.00013952,2]
[352816802,1739344247465,-500.0,0.00013952,2]
[352816803,1739344247474,-809.78,0.00013952,2]
[352816804,1739344247484,-500.0,0.00014,7]
[352816805,1739344247493,-500.0,0.00014,7]
[352816806,1739344247502,-500.0,0.00014,7]
[352816807,1739344247512,-500.0,0.00014,7]
[352816808,1739344247522,-500.0,0.00014,7]
[352816809,1739344247533,-500.0,0.00014,7]
[352816810,1739344247542,-500.0,0.00014,7]
[352816811,1739344247551,-500.0,0.00014,7]
[352816812,1739344247560,-500.0,0.00014,7]
[352816813,1739344247570,-500.0,0.00014,7]
[352816814,1739344247580,-500.0,0.00014,7]
[352816815,1739344247590,-500.0,0.00014,7]
[352816816,1739344247599,-500.0,0.00014,7]
[352816817,1739344247608,-500.0,0.00014,7]
[352816818,1739344247617,-500.0,0.00014,7]
[352816819,1739344247626,-500.0,0.00014,7]
[352816820,1739344247635,-500.0,0.00014,7]
[352816821,1739344247644,-500.0,0.00014,7]
[352816822,1739344247653,-500.0,0.00014,7]
[352816823,1739344247663,-500.0,0.00014,7]
[352816824,1739344247672,-500.0,0.00014,7]
[352816825,1739344247681,-500.0,0.00014,7]
[352816826,1739344247690,-500.0,0.00014,7]
[352816827,1739344247699,-500.0,0.00014,7]
[352816828,1739344247709,-500.0,0.00014,7]
[352816829,1739344247718,-500.0,0.00014,7]
[352816830,1739344247727,-500.0,0.00014,7]
[352816831,1739344247737,-500.0,0.00014,7]
[352816832,1739344247747,-500.0,0.00014,7]
[352816833,1739344247757,-500.0,0.00014,7]
[352816834,1739344247767,-500.0,0.00014,7]
[352816835,1739344247776,-500.0,0.00014,7]
[352816836,1739344247786,-500.0,0.00014,7]
[352816837,1739344247796,-500.0,0.00014,7]
[352816838,1739344247805,-500.0,0.00014,7]
[352816839,1739344247816,-500.0,0.00014,7]
[352816840,1739344247825,-500.0,0.00014,7]
[352816841,1739344247835,-500.0,0.00014,7]
[352816842,1739344247846,-500.0,0.00014,7]
[352816843,1739344247856,-500.0,0.00014,7]
[352816844,1739344247866,-500.0,0.00014,7]
[352816845,1739344247876,-500.0,0.00014,7]
[352816846,1739344247887,-500.0,0.00014,7]
[352816847,1739344247897,-500.0,0.00014,7]
[352816848,1739344247907,-500.0,0.00014,7]
[352816849,1739344247917,-500.0,0.00014,7]
[352816850,1739344247998,-500.0,0.00014,7]
[352816851,1739344248009,-500.0,0.00014,7]
[352816852,1739344248019,-500.0,0.00014,7]
[352816853,1739344248029,-500.0,0.00014,7]
[352816854,1739344248039,-500.0,0.00014,7]
[352816855,1739344248049,-500.0,0.00014,7]
[352816856,1739344248059,-603.13,0.00014,7]
[352816857,1739344248070,-500.0,0.00014,7]
[352816858,1739344248080,-500.0,0.00014,7]
[352816859,1739344248090,-500.0,0.00014,7]
[352816860,1739344248100,-158.093449,0.00014,2]
[352816861,1739344248110,-152.024997,0.00014,2]
[352816862,1739344248119,-3244.95,0.00014048,2]
[352816863,1739344248129,-1060.27,0.00014048,2]
[352816864,1739344248139,-500.0,0.00014048,2]
[352816865,1739344248149,-1074.58,0.00014048,2]
[352816866,1739344248158,-500.0,0.00014048,2]
[352816867,1739344248169,-500.0,0.00014048,2]
[352816868,1739344248179,-515.13,0.00014048,2]
[352816869,1739344248189,-500.0,0.00014048,2]
[352816870,1739344248199,-749.62,0.00014048,2]
[352816871,1739344248211,-3025.9,0.00014048,2]
[352816872,1739344248221,-500.0,0.00014048,2]
[352816873,1739344248231,-628.25,0.00014048,2]
[352816874,1739344248241,-500.0,0.00014048,2]
[352816875,1739344248251,-500.0,0.00014048,2]
[352816876,1739344248261,-500.0,0.00014048,2]
[352816877,1739344248271,-500.0,0.00014048,2]
[352816878,1739344248281,-500.0,0.00014049,2]
[352816879,1739344248291,-296.75710932,0.00014049,2]
[352816880,1739344248301,-500.0,0.00014049,2]
[352816881,1739344248311,-506.52232214,0.00014049,2]
[352816882,1739344248322,-500.0,0.00014049,2]
[352816883,1739344248332,-500.0,0.0001405,2]
[352816884,1739344248341,-500.0,0.0001405,2]
[352816885,1739344248351,-500.0,0.0001405,2]
[352816886,1739344248361,-151.0,0.0001405,2]
[352816887,1739344248371,-151.0,0.0001405,2]
[352816888,1739344248381,-500.0,0.0001405,2]
[352816889,1739344248391,-500.0,0.0001405,2]
[352816890,1739344248401,-500.0,0.0001405,2]
[352816891,1739344248411,-162.48117573,0.0001405,2]
[352816892,1739344248421,-3733.21,0.0001405,2]
[352816893,1739344248431,-1029.41,0.0001405,2]
[352816894,1739344248441,-539.6305174,0.0001405,2]
[352816895,1739344248451,-500.0,0.0001405,2]
[352816896,1739344248461,-347.53580468,0.0001405,2]
[352816897,1739344248470,-500.0,0.0001405,2]
[352816898,1739344248481,-9792.87,0.0001405,2]
[352816899,1739344248490,-500.0,0.0001405,2]
[352816900,1739344248500,-500.0,0.0001405,2]
[352816901,1739344248511,-151.0,0.0001405,2]
[352816902,1739344248520,-500.0,0.0001405,2]
[352816903,1739344248531,-4052.13,0.0001405,2]
[352816904,1739344248542,-500.0,0.0001405,2]
[352816905,1739344248551,-500.0,0.0001405,2]
[352816906,1739344248560,-500.0,0.0001405,2]
[352816907,1739344248571,-500.0,0.0001405,2]
[352816908,1739344248580,-500.0,0.0001405,2]
[352816909,1739344248590,-397.32602959,0.00014051,2]
[352816910,1739344248599,-500.0,0.00014051,2]
[352816911,1739344248610,-500.0,0.00014051,2]
[352816912,1739344248620,-151.0,0.00014051,2]
[352816913,1739344248630,-151.0,0.00014051,2]
[352816914,1739344248640,-155.475813,0.00014051,2]
[352816915,1739344248650,-151.0,0.00014051,2]
[352816916,1739344248659,-500.0,0.00014052,2]
[352816917,1739344248669,-303.99661224,0.00014061,2]
[352816918,1739344248679,-878.96,0.00014089,2]
[352816919,1739344248690,-500.0,0.00014089,2]
[352816920,1739344248699,-809.78,0.00014089,2]
[352816921,1739344248708,-3244.95,0.00014185,2]
[352816922,1739344248718,-1060.27,0.00014185,2]
[352816923,1739344248727,-500.0,0.00014185,2]
[352816924,1739344248737,-1074.58,0.00014185,2]
[352816925,1739344248747,-500.0,0.00014185,2]
[352816926,1739344248758,-500.0,0.00014185,2]
[352816927,1739344248769,-515.13,0.00014185,2]
[352816928,1739344248779,-500.0,0.00014185,2]
[352816929,1739344248790,-749.62,0.00014185,2]
[352816930,1739344248801,-3025.9,0.00014185,2]
[352816931,1739344248811,-500.0,0.00014185,2]
[352816932,1739344248821,-628.25,0.00014185,2]
[352816933,1739344248831,-500.0,0.00014185,2]
[352816934,1739344248841,-500.0,0.00014185,2]
[352816935,1739344248851,-500.0,0.00014185,2]
[352816936,1739344248861,-500.0,0.00014185,2]
[352816937,1739344248871,-508.12984906,0.00014186,2]
[352816938,1739344248881,-503.52852237,0.00014186,2]
[352816939,1739344248891,-500.0,0.00014186,2]
[352816940,1739344248901,-500.0,0.00014187,2]
[352816941,1739344248910,-500.0,0.00014187,2]
[352816942,1739344248920,-500.0,0.00014187,2]
[352816943,1739344248930,-500.0,0.00014187,2]
[352816944,1739344248941,-3733.21,0.00014187,2]
[352816945,1739344248951,-1029.41,0.00014187,2]
[352816946,1739344248962,-151.0,0.00014187,2]
[352816947,1739344248972,-500.0,0.00014187,2]
[352816948,1739344248983,-500.0,0.00014187,2]
[352816949,1739344248995,-9792.87,0.00014187,2]
[352816950,1739344249006,-500.0,0.00014187,2]
[352816951,1739344249016,-500.0,0.00014187,2]
[352816952,1739344249027,-500.0,0.00014187,2]
[352816953,1739344249038,-4052.13,0.00014187,2]
[352816954,1739344249049,-500.0,0.00014187,2]
[352816955,1739344249059,-212.07100562,0.00014187,2]
[352816956,1739344249070,-500.0,0.00014187,2]
[352816957,1739344249081,-151.0,0.00014187,2]
[352816958,1739344249091,-500.0,0.00014187,2]
[352816959,1739344249102,-500.0,0.00014187,2]
[352816960,1739344249112,-151.0,0.00014188,2]
[352816961,1739344249122,-151.0,0.00014188,2]
[352816962,1739344249133,-152.8351,0.00014188,2]
[352816963,1739344249144,-151.0,0.00014188,2]
[352816964,1739344249154,-500.0,0.00014188,2]
[352816965,1739344249165,-500.0,0.00014188,2]
[352816966,1739344249176,-500.0,0.00014189,2]
[352816967,1739344249187,-878.96,0.00014226,2]
[352816968,1739344249199,-500.0,0.00014226,2]
[352816969,1739344249209,-809.78,0.00014226,2]
[352816970,1739344249220,-378.53207376,0.00014315,2]
[352816971,1739344249230,-514.228614,0.00014315,2]
[352816972,1739344249240,-3244.95,0.00014322,2]
[352816973,1739344249250,-1060.27,0.00014322,2]
[352816974,1739344249262,-500.0,0.00014322,2]
[352816975,1739344249272,-1074.58,0.00014322,2]
[352816976,1739344249282,-500.0,0.00014322,2]
[352816977,1739344249291,-500.0,0.00014322,2]
[352816978,1739344249300,-515.13,0.00014322,2]
[352816979,1739344249310,-500.0,0.00014322,2]
[352816980,1739344249320,-749.62,0.00014322,2]
[352816981,1739344249329,-3025.9,0.00014322,2]
[352816982,1739344249339,-500.0,0.00014322,2]
[352816983,1739344249348,-628.25,0.00014322,2]
[352816984,1739344249358,-500.0,0.00014322,2]
[352816985,1739344249367,-500.0,0.00014322,2]
[352816986,1739344249377,-500.0,0.00014322,2]
[352816987,1739344249388,-500.0,0.00014322,2]
[352816988,1739344249397,-500.0,0.00014323,2]
[352816989,1739344249408,-1000.0,0.00014324,2]
[352816990,1739344249419,-244.17855,0.00014324,2]
[352816991,1739344249429,-244.17855,0.00014324,2]
[352816992,1739344249439,-500.0,0.00014324,2]
[352816993,1739344249450,-500.0,0.00014324,2]
[352816994,1739344249459,-500.0,0.00014324,2]
[352816995,1739344249469,-3733.21,0.00014324,2]
[352816996,1739344249479,-1029.41,0.00014324,2]
[352816997,1739344249489,-638.67465305,0.00014324,2]
[352816998,1739344249499,-500.0,0.00014324,2]
[352816999,1739344249510,-9792.87,0.00014324,2]
[352817000,1739344249519,-500.0,0.00014324,2]
[352817001,1739344249529,-500.0,0.00014324,2]
[352817002,1739344249539,-500.0,0.00014324,2]
[352817003,1739344249548,-4052.13,0.00014324,2]
[352817004,1739344249558,-500.0,0.00014324,2]
[352817005,1739344249639,-500.0,0.00014324,2]
[352817006,1739344249649,-500.0,0.00014325,2]
[352817007,1739344249660,-878.96,0.00014363,2]
[352817008,1739344249670,-500.0,0.00014363,2]
[352817009,1739344249680,-809.78,0.00014363,2]
[352817010,1739344249690,-3244.95,0.00014459,2]
[352817011,1739344249700,-1060.27,0.00014459,2]
[352817012,1739344249710,-500.0,0.00014459,2]
[352817013,1739344249720,-1074.58,0.00014459,2]
[352817014,1739344249729,-500.0,0.00014459,2]
[352817015,1739344249739,-515.13,0.00014459,2]
[352817016,1739344249750,-749.62,0.00014459,2]
[352817017,1739344249759,-3025.9,0.00014459,2]
[352817018,1739344249769,-500.0,0.00014459,2]
[352817019,1739344249778,-628.25,0.00014459,2]
[352817020,1739344249787,-500.0,0.00014459,2]
[352817021,1739344249797,-500.0,0.00014459,2]
[352817022,1739344249807,-500.0,0.00014459,2]
[352817023,1739344249816,-500.0,0.0001446,2]
[352817024,1739344249826,-151.0,0.00014461,2]
[352817025,1739344249835,-151.0,0.00014461,2]
[352817026,1739344249845,-500.0,0.00014461,2]
[352817027,1739344249855,-500.0,0.00014461,2]
[352817028,1739344249865,-500.0,0.00014461,2]
[352817029,1739344249874,-3733.21,0.00014461,2]
[352817030,1739344249884,-1029.41,0.00014461,2]
[352817031,1739344249894,-9792.87,0.00014461,2]
[352817032,1739344249904,-500.0,0.00014461,2]
[352817033,1739344249914,-4052.13,0.00014461,2]
[352817034,1739344249925,-500.0,0.00014461,2]
[352817035,1739344249935,-563.81626233,0.00014462,2]
[352817036,1739344249946,-878.96,0.000145,2]
[352817037,1739344249956,-500.0,0.000145,2]
[352817038,1739344249966,-809.78,0.000145,2]
[352817039,1739344249975,-151.0,0.0001457,2]
[352817040,1739344249984,-151.0,0.0001457,2]
[352817041,1739344249997,-3244.95,0.00014596,2]
[352817042,1739344250007,-1060.27,0.00014596,2]
[352817043,1739344250017,-500.0,0.00014596,2]
[352817044,1739344250026,-1074.58,0.00014596,2]
[352817045,1739344250035,-500.0,0.00014596,2]
[352817046,1739344250046,-515.13,0.00014596,2]
[352817047,1739344250056,-749.62,0.00014596,2]
[352817048,1739344250066,-3025.9,0.00014596,2]
[352817049,1739344250077,-500.0,0.00014596,2]
[352817050,1739344250087,-628.25,0.00014596,2]
[352817051,1739344250096,-529.39633535,0.00014596,2]
[352817052,1739344250106,-500.0,0.00014596,2]
[352817053,1739344250115,-500.0,0.00014596,2]
[352817054,1739344250125,-554.7766461,0.00014597,2]
[352817055,1739344250135,-500.0,0.00014598,2]
[352817056,1739344250145,-500.0,0.00014598,2]
[352817057,1739344250155,-500.0,0.00014598,2]
[352817058,1739344250164,-3733.21,0.00014598,2]
[352817059,1739344250175,-1029.41,0.00014598,2]
[352817060,1739344250185,-151.0,0.00014598,2]
[352817061,1739344250195,-9792.87,0.00014598,2]
[352817062,1739344250204,-151.0,0.00014598,2]
[352817063,1739344250213,-500.0,0.00014598,2]
[352817064,1739344250223,-206.263594,0.00014598,2]
[352817065,1739344250233,-4052.13,0.00014598,2]
[352817066,1739344250243,-500.0,0.00014598,2]
[352817067,1739344250252,-396.0,0.00014632,2]
[352817068,1739344250264,-878.96,0.00014637,2]
[352817069,1739344250274,-500.0,0.00014637,2]
[352817070,1739344250284,-809.78,0.00014637,2]
[352817071,1739344250294,-420.0,0.00014693,2]
[352817072,1739344250303,-150.0,0.00014712,2]
[352817073,1739344250314,-3244.95,0.00014733,2]
[352817074,1739344250323,-1060.27,0.00014733,2]
[352817075,1739344250333,-500.0,0.00014733,2]
[352817076,1739344250343,-1074.58,0.00014733,2]
[352817077,1739344250352,-500.0,0.00014733,2]
[352817078,1739344250362,-515.13,0.00014733,2]
[352817079,1739344250371,-749.62,0.00014733,2]
[352817080,1739344250381,-3025.9,0.00014733,2]
[352817081,1739344250391,-500.0,0.00014733,2]
[352817082,1739344250400,-628.25,0.00014733,2]
[352817083,1739344250410,-500.0,0.00014733,2]
[352817084,1739344250420,-500.0,0.00014733,2]
[352817085,1739344250430,-42513.09949178,0.00014735,5]
[352817086,1739344250439,-500.0,0.00014735,2]
[352817087,1739344250449,-500.0,0.00014735,2]
[352817088,1739344250459,-500.0,0.00014735,2]
[352817089,1739344250469,-1616.00383467,0.00014735,2]
[352817090,1739344250521,-2117.20616533,0.00014735,2]
[352817091,1739344250531,-1029.41,0.00014735,2]
[352817092,1739344250541,-9792.87,0.00014735,2]
[352817093,1739344250551,-500.0,0.00014735,2]
[352817094,1739344250561,-4052.13,0.00014735,2]
[352817095,1739344250572,-500.0,0.00014735,2]
[352817096,1739344250582,-878.96,0.00014774,2]
[352817097,1739344250592,-500.0,0.00014774,2]
[352817098,1739344250602,-809.78,0.00014774,2]
[352817099,1739344250612,-9869.22482394,0.00014778,2]
[352817100,1739344250623,-3244.95,0.0001487,2]
[352817101,1739344250632,-1060.27,0.0001487,2]
[352817102,1739344250642,-500.0,0.0001487,2]
[352817103,1739344250651,-1074.58,0.0001487,2]
[352817104,1739344250661,-500.0,0.0001487,2]
[352817105,1739344250671,-515.13,0.0001487,2]
[352817106,1739344250680,-749.62,0.0001487,2]
[352817107,1739344250689,-3025.9,0.0001487,2]
[352817108,1739344250698,-500.0,0.0001487,2]
[352817109,1739344250708,-628.25,0.0001487,2]
[352817110,1739344250718,-500.0,0.0001487,2]
[352817111,1739344250727,-500.0,0.0001487,2]
[352817112,1739344250737,-7484.18930449,0.00014872,5]
[352817113,1739344250746,-244.17855,0.00014872,2]
[352817114,1739344250755,-244.17855,0.00014872,2]
[352817115,1739344250765,-500.0,0.00014872,2]
[352817116,1739344250775,-500.0,0.00014872,2]
[352817117,1739344250785,-500.0,0.00014872,2]
[352817118,1739344250794,-3733.21,0.00014872,2]
[352817119,1739344250803,-1029.41,0.00014872,2]
[352817120,1739344250813,-151.0,0.00014872,2]
[352817121,1739344250822,-9792.87,0.00014872,2]
[352817122,1739344250831,-151.0,0.00014872,2]
[352817123,1739344250841,-500.0,0.00014872,2]
[352817124,1739344250852,-4052.13,0.00014872,2]
[352817125,1739344250861,-500.0,0.00014872,2]
[352817126,1739344250871,-300.0,0.000149,5]
[352817127,1739344250881,-878.96,0.00014911,2]
[352817128,1739344250891,-500.0,0.00014911,2]
[352817129,1739344250900,-809.78,0.00014911,2]
[352817130,1739344250911,-17751.58065224,0.00015,4]
[352817131,1739344250920,-13285.42488783,0.00015,2]
[352817132,1739344475191,400.0,0.00010685,2]
[352817134,1739345150127,-796.09525418,0.00011878,2]
[352817135,1739345150151,-77.04831286,0.00011998,2]
[352817138,1739345237094,-3847.27476429,0.00011878,2]
[352817139,1739345237118,-300.0,0.00011997,2]
[352817140,1739345237140,-732.46,0.00011998,2]
[352817141,1739345237162,-500.0,0.00011998,2]
[352817142,1739345237185,-500.0,0.00011998,2]
[352817143,1739345237207,-674.82,0.00011998,2]
[352817144,1739345237229,-500.0,0.00011998,2]
[352817145,1739345237250,-500.0,0.00011998,2]
[352817146,1739345237272,-500.0,0.00011999,2]
[352817147,1739345237293,-154.48,0.00011999,2]
[352817148,1739345237314,-160.7635079,0.00011999,2]
[352817149,1739345251116,-500.0,0.00011999,2]
[352817150,1739345251138,-500.0,0.00011999,2]
[352817151,1739345251161,-500.0,0.00011999,2]
[352817152,1739345251182,-500.0,0.00011999,2]
[352817153,1739345251205,-500.0,0.00011999,2]
[352817154,1739345251226,-500.0,0.00011999,2]
[352817155,1739345251248,-500.0,0.00011999,2]
[352817156,1739345251270,-500.0,0.00011999,2]
[352817157,1739345251291,-500.0,0.00011999,2]
[352817158,1739345251313,-500.0,0.00011999,2]